{"text_format":"3","workbook":"xlsx","n_sheets":3,"sheets":["Podaci o potencijalnom klijentu","Predviđena prodaja ","Mjesečno ponderirano predviđanj"],"not_rendered":{"charts":1,"defined_names":10},"read":"whole","date_system":"1900"}

{"sheet":"Podaci o potencijalnom klijentu","index":0,"n_rows":9,"n_cols":10,"rows_kept":9}
[null,"Naziv tvrtke"]
[null,"Detaljna evidencija o potencijalnim klijentima"]
[null,{"$f":"TODAY()","v":"2022-04-05"}]
[{"$nulls":8},{"$f":"Naziv_tvrtke","v":"Naziv tvrtke"},"POVJERLJIVO"]
[null,"Ime potencijalnog klijenta","Kontakt potencijalnog klijenta","Potencijalni klijent \nIzvor","Potencijalni klijent \nRegija","Potencijalni klijent \nVrsta","Potencijalne prilike","Mogućnost \nprodaje","Predviđanje \nZatvori","Ponderirano \nPredviđanje"]
[null,"A. Datum Corporation",{"$nulls":3},"Strateška",{"v":300000,"d":"300,000.00 kn"},{"v":0.9,"d":"90%"},"Siječanj",{"$f":"IFERROR(IF(PodaciOPotencijalnomKlijentu[[#This Row],[Mogućnost \nprodaje]]<>\"\",PodaciOPotencijalnomKlijentu[[#This Row],[Mogućnost \nprodaje]]*PodaciOPotencijalnomKlijentu[[#This Row],[Potencijalne prilike]],\"\"),\"\")","v":{"v":270000,"d":"270,000.00 kn"}}]
[null,"Adventure Works",{"$nulls":3},"Strateška",{"v":200000,"d":"200,000.00 kn"},{"v":0.1,"d":"10%"},"Veljača",{"$f":"IFERROR(IF(PodaciOPotencijalnomKlijentu[[#This Row],[Mogućnost \nprodaje]]<>\"\",PodaciOPotencijalnomKlijentu[[#This Row],[Mogućnost \nprodaje]]*PodaciOPotencijalnomKlijentu[[#This Row],[Potencijalne prilike]],\"\"),\"\")","v":{"v":20000,"d":"20,000.00 kn"}}]
[null,"Alpine Ski House",{"$nulls":3},"Taktička",{"v":100000,"d":"100,000.00 kn"},{"v":0.2,"d":"20%"},"Ožujak",{"$f":"IFERROR(IF(PodaciOPotencijalnomKlijentu[[#This Row],[Mogućnost \nprodaje]]<>\"\",PodaciOPotencijalnomKlijentu[[#This Row],[Mogućnost \nprodaje]]*PodaciOPotencijalnomKlijentu[[#This Row],[Potencijalne prilike]],\"\"),\"\")","v":{"v":20000,"d":"20,000.00 kn"}}]
[null,"Zbroj",{"$nulls":4},{"$f":"SUBTOTAL(109,PodaciOPotencijalnomKlijentu[Potencijalne prilike])","v":{"v":600000,"d":"600,000.00 kn"}},null,null,{"$f":"SUBTOTAL(109,PodaciOPotencijalnomKlijentu[Ponderirano \nPredviđanje])","v":{"v":310000,"d":"310,000.00 kn"}}]

{"sheet":"Predviđena prodaja ","index":1,"n_rows":21,"n_cols":14,"rows_kept":21,"merged":[[3,12,3,13]]}
[null,{"$f":"Naziv_tvrtke","v":"Naziv tvrtke"}]
[null,"Predviđena prodaja"]
[null,{"$f":"DatumPraćenja","v":"2022-04-05"}]
[{"$nulls":11},{"$f":"Naziv_tvrtke","v":"Naziv tvrtke"},"POVJERLJIVO"]
[null,"Ime potencijalnog klijenta","Siječanj \nPredviđanje","Veljača \nPredviđanje","Ožujak \nPredviđanje","Travanj \nPredviđanje","Svibanj \nPredviđanje","Lipanj \nPredviđanje","Predviđanje za srpanj","Kolovoz \nPredviđanje","Rujan \nPredviđanje","Listopad \nPredviđanje","Studeni \nPredviđanje","Prosinac \nPredviđanje"]
[null,{"$f":"IFERROR(IF(AND(PodaciOPotencijalnomKlijentu[[#This Row],[Ime potencijalnog klijenta]] <> \"\", ROW(PredviđenaProdaja[Ime potencijalnog klijenta])<>ZadnjiUnos),PodaciOPotencijalnomKlijentu[Ime potencijalnog klijenta], \"\"),\"\")","v":"A. Datum Corporation"},{"$f":"IFERROR(IF(PodaciOPotencijalnomKlijentu[[#This Row],[Predviđanje \nZatvori]] <>\"\",IF(PodaciOPotencijalnomKlijentu[[#This Row],[Predviđanje \nZatvori]]= \"Siječanj\",PodaciOPotencijalnomKlijentu[Ponderirano \nPredviđanje],0),\"\"),\"\")","v":{"v":270000,"d":"270,000 kn"}},{"$f":"IFERROR(IF(PodaciOPotencijalnomKlijentu[[#This Row],[Predviđanje \nZatvori]] <>\"\",IF(PodaciOPotencijalnomKlijentu[[#This Row],[Predviđanje \nZatvori]] = \"Veljača\",PodaciOPotencijalnomKlijentu[Ponderirano \nPredviđanje],0),\"\"),\"\")","v":{"v":0,"d":"0 kn"}},{"$f":"IFERROR(IF(PodaciOPotencijalnomKlijentu[[#This Row],[Predviđanje \nZatvori]] <>\"\",IF(PodaciOPotencijalnomKlijentu[[#This Row],[Predviđanje \nZatvori]] = \"Ožujak\",PodaciOPotencijalnomKlijentu[Ponderirano \nPredviđanje],0),\"\"),\"\")","v":{"v":0,"d":"0 kn"}},{"$f":"IFERROR(IF(PodaciOPotencijalnomKlijentu[[#This Row],[Predviđanje \nZatvori]] <>\"\",IF(PodaciOPotencijalnomKlijentu[[#This Row],[Predviđanje \nZatvori]] = \"Travanj\",PodaciOPotencijalnomKlijentu[Ponderirano \nPredviđanje],0),\"\"),\"\")","v":{"v":0,"d":"0 kn"}},{"$f":"IFERROR(IF(PodaciOPotencijalnomKlijentu[[#This Row],[Predviđanje \nZatvori]] <>\"\",IF(PodaciOPotencijalnomKlijentu[[#This Row],[Predviđanje \nZatvori]] = \"Svibanj\",PodaciOPotencijalnomKlijentu[Ponderirano \nPredviđanje],0),\"\"),\"\")","v":{"v":0,"d":"0 kn"}},{"$f":"IFERROR(IF(PodaciOPotencijalnomKlijentu[[#This Row],[Predviđanje \nZatvori]] <>\"\",IF(PodaciOPotencijalnomKlijentu[[#This Row],[Predviđanje \nZatvori]] = \"Lipanj\",PodaciOPotencijalnomKlijentu[Ponderirano \nPredviđanje],0),\"\"),\"\")","v":{"v":0,"d":"0 kn"}},{"$f":"IFERROR(IF(PodaciOPotencijalnomKlijentu[[#This Row],[Predviđanje \nZatvori]] <>\"\",IF(PodaciOPotencijalnomKlijentu[[#This Row],[Predviđanje \nZatvori]] = \"July\",PodaciOPotencijalnomKlijentu[Ponderirano \nPredviđanje],0),\"\"),\"\")","v":{"v":0,"d":"0 kn"}},{"$f":"IFERROR(IF(PodaciOPotencijalnomKlijentu[[#This Row],[Predviđanje \nZatvori]] <>\"\",IF(PodaciOPotencijalnomKlijentu[[#This Row],[Predviđanje \nZatvori]] = \"Kolovoz\",PodaciOPotencijalnomKlijentu[Ponderirano \nPredviđanje],0),\"\"),\"\")","v":{"v":0,"d":"0 kn"}},{"$f":"IFERROR(IF(PodaciOPotencijalnomKlijentu[[#This Row],[Predviđanje \nZatvori]] <>\"\",IF(PodaciOPotencijalnomKlijentu[[#This Row],[Predviđanje \nZatvori]] = \"Rujan\",PodaciOPotencijalnomKlijentu[Ponderirano \nPredviđanje],0),\"\"),\"\")","v":{"v":0,"d":"0 kn"}},{"$f":"IFERROR(IF(PodaciOPotencijalnomKlijentu[[#This Row],[Predviđanje \nZatvori]] <>\"\",IF(PodaciOPotencijalnomKlijentu[[#This Row],[Predviđanje \nZatvori]] = \"Listopad\",PodaciOPotencijalnomKlijentu[Ponderirano \nPredviđanje],0),\"\"),\"\")","v":{"v":0,"d":"0 kn"}},{"$f":"IFERROR(IF(PodaciOPotencijalnomKlijentu[[#This Row],[Predviđanje \nZatvori]] <>\"\",IF(PodaciOPotencijalnomKlijentu[[#This Row],[Predviđanje \nZatvori]] = \"Studeni\",PodaciOPotencijalnomKlijentu[Ponderirano \nPredviđanje],0),\"\"),\"\")","v":{"v":0,"d":"0 kn"}},{"$f":"IFERROR(IF(PodaciOPotencijalnomKlijentu[[#This Row],[Predviđanje \nZatvori]] <>\"\",IF(PodaciOPotencijalnomKlijentu[[#This Row],[Predviđanje \nZatvori]] = \"Prosinac\",PodaciOPotencijalnomKlijentu[Ponderirano \nPredviđanje],0),\"\"),\"\")","v":{"v":0,"d":"0 kn"}}]
[null,{"$f":"IFERROR(IF(AND(PodaciOPotencijalnomKlijentu[[#This Row],[Ime potencijalnog klijenta]] <> \"\", ROW(PredviđenaProdaja[Ime potencijalnog klijenta])<>ZadnjiUnos),PodaciOPotencijalnomKlijentu[Ime potencijalnog klijenta], \"\"),\"\")","v":"Adventure Works"},{"$f":"IFERROR(IF(PodaciOPotencijalnomKlijentu[[#This Row],[Predviđanje \nZatvori]] <>\"\",IF(PodaciOPotencijalnomKlijentu[[#This Row],[Predviđanje \nZatvori]]= \"Siječanj\",PodaciOPotencijalnomKlijentu[Ponderirano \nPredviđanje],0),\"\"),\"\")","v":{"v":0,"d":"0 kn"}},{"$f":"IFERROR(IF(PodaciOPotencijalnomKlijentu[[#This Row],[Predviđanje \nZatvori]] <>\"\",IF(PodaciOPotencijalnomKlijentu[[#This Row],[Predviđanje \nZatvori]] = \"Veljača\",PodaciOPotencijalnomKlijentu[Ponderirano \nPredviđanje],0),\"\"),\"\")","v":{"v":20000,"d":"20,000 kn"}},{"$f":"IFERROR(IF(PodaciOPotencijalnomKlijentu[[#This Row],[Predviđanje \nZatvori]] <>\"\",IF(PodaciOPotencijalnomKlijentu[[#This Row],[Predviđanje \nZatvori]] = \"Ožujak\",PodaciOPotencijalnomKlijentu[Ponderirano \nPredviđanje],0),\"\"),\"\")","v":{"v":0,"d":"0 kn"}},{"$f":"IFERROR(IF(PodaciOPotencijalnomKlijentu[[#This Row],[Predviđanje \nZatvori]] <>\"\",IF(PodaciOPotencijalnomKlijentu[[#This Row],[Predviđanje \nZatvori]] = \"Travanj\",PodaciOPotencijalnomKlijentu[Ponderirano \nPredviđanje],0),\"\"),\"\")","v":{"v":0,"d":"0 kn"}},{"$f":"IFERROR(IF(PodaciOPotencijalnomKlijentu[[#This Row],[Predviđanje \nZatvori]] <>\"\",IF(PodaciOPotencijalnomKlijentu[[#This Row],[Predviđanje \nZatvori]] = \"Svibanj\",PodaciOPotencijalnomKlijentu[Ponderirano \nPredviđanje],0),\"\"),\"\")","v":{"v":0,"d":"0 kn"}},{"$f":"IFERROR(IF(PodaciOPotencijalnomKlijentu[[#This Row],[Predviđanje \nZatvori]] <>\"\",IF(PodaciOPotencijalnomKlijentu[[#This Row],[Predviđanje \nZatvori]] = \"Lipanj\",PodaciOPotencijalnomKlijentu[Ponderirano \nPredviđanje],0),\"\"),\"\")","v":{"v":0,"d":"0 kn"}},{"$f":"IFERROR(IF(PodaciOPotencijalnomKlijentu[[#This Row],[Predviđanje \nZatvori]] <>\"\",IF(PodaciOPotencijalnomKlijentu[[#This Row],[Predviđanje \nZatvori]] = \"July\",PodaciOPotencijalnomKlijentu[Ponderirano \nPredviđanje],0),\"\"),\"\")","v":{"v":0,"d":"0 kn"}},{"$f":"IFERROR(IF(PodaciOPotencijalnomKlijentu[[#This Row],[Predviđanje \nZatvori]] <>\"\",IF(PodaciOPotencijalnomKlijentu[[#This Row],[Predviđanje \nZatvori]] = \"Kolovoz\",PodaciOPotencijalnomKlijentu[Ponderirano \nPredviđanje],0),\"\"),\"\")","v":{"v":0,"d":"0 kn"}},{"$f":"IFERROR(IF(PodaciOPotencijalnomKlijentu[[#This Row],[Predviđanje \nZatvori]] <>\"\",IF(PodaciOPotencijalnomKlijentu[[#This Row],[Predviđanje \nZatvori]] = \"Rujan\",PodaciOPotencijalnomKlijentu[Ponderirano \nPredviđanje],0),\"\"),\"\")","v":{"v":0,"d":"0 kn"}},{"$f":"IFERROR(IF(PodaciOPotencijalnomKlijentu[[#This Row],[Predviđanje \nZatvori]] <>\"\",IF(PodaciOPotencijalnomKlijentu[[#This Row],[Predviđanje \nZatvori]] = \"Listopad\",PodaciOPotencijalnomKlijentu[Ponderirano \nPredviđanje],0),\"\"),\"\")","v":{"v":0,"d":"0 kn"}},{"$f":"IFERROR(IF(PodaciOPotencijalnomKlijentu[[#This Row],[Predviđanje \nZatvori]] <>\"\",IF(PodaciOPotencijalnomKlijentu[[#This Row],[Predviđanje \nZatvori]] = \"Studeni\",PodaciOPotencijalnomKlijentu[Ponderirano \nPredviđanje],0),\"\"),\"\")","v":{"v":0,"d":"0 kn"}},{"$f":"IFERROR(IF(PodaciOPotencijalnomKlijentu[[#This Row],[Predviđanje \nZatvori]] <>\"\",IF(PodaciOPotencijalnomKlijentu[[#This Row],[Predviđanje \nZatvori]] = \"Prosinac\",PodaciOPotencijalnomKlijentu[Ponderirano \nPredviđanje],0),\"\"),\"\")","v":{"v":0,"d":"0 kn"}}]
[null,{"$f":"IFERROR(IF(AND(PodaciOPotencijalnomKlijentu[[#This Row],[Ime potencijalnog klijenta]] <> \"\", ROW(PredviđenaProdaja[Ime potencijalnog klijenta])<>ZadnjiUnos),PodaciOPotencijalnomKlijentu[Ime potencijalnog klijenta], \"\"),\"\")","v":"Alpine Ski House"},{"$f":"IFERROR(IF(PodaciOPotencijalnomKlijentu[[#This Row],[Predviđanje \nZatvori]] <>\"\",IF(PodaciOPotencijalnomKlijentu[[#This Row],[Predviđanje \nZatvori]]= \"Siječanj\",PodaciOPotencijalnomKlijentu[Ponderirano \nPredviđanje],0),\"\"),\"\")","v":{"v":0,"d":"0 kn"}},{"$f":"IFERROR(IF(PodaciOPotencijalnomKlijentu[[#This Row],[Predviđanje \nZatvori]] <>\"\",IF(PodaciOPotencijalnomKlijentu[[#This Row],[Predviđanje \nZatvori]] = \"Veljača\",PodaciOPotencijalnomKlijentu[Ponderirano \nPredviđanje],0),\"\"),\"\")","v":{"v":0,"d":"0 kn"}},{"$f":"IFERROR(IF(PodaciOPotencijalnomKlijentu[[#This Row],[Predviđanje \nZatvori]] <>\"\",IF(PodaciOPotencijalnomKlijentu[[#This Row],[Predviđanje \nZatvori]] = \"Ožujak\",PodaciOPotencijalnomKlijentu[Ponderirano \nPredviđanje],0),\"\"),\"\")","v":{"v":20000,"d":"20,000 kn"}},{"$f":"IFERROR(IF(PodaciOPotencijalnomKlijentu[[#This Row],[Predviđanje \nZatvori]] <>\"\",IF(PodaciOPotencijalnomKlijentu[[#This Row],[Predviđanje \nZatvori]] = \"Travanj\",PodaciOPotencijalnomKlijentu[Ponderirano \nPredviđanje],0),\"\"),\"\")","v":{"v":0,"d":"0 kn"}},{"$f":"IFERROR(IF(PodaciOPotencijalnomKlijentu[[#This Row],[Predviđanje \nZatvori]] <>\"\",IF(PodaciOPotencijalnomKlijentu[[#This Row],[Predviđanje \nZatvori]] = \"Svibanj\",PodaciOPotencijalnomKlijentu[Ponderirano \nPredviđanje],0),\"\"),\"\")","v":{"v":0,"d":"0 kn"}},{"$f":"IFERROR(IF(PodaciOPotencijalnomKlijentu[[#This Row],[Predviđanje \nZatvori]] <>\"\",IF(PodaciOPotencijalnomKlijentu[[#This Row],[Predviđanje \nZatvori]] = \"Lipanj\",PodaciOPotencijalnomKlijentu[Ponderirano \nPredviđanje],0),\"\"),\"\")","v":{"v":0,"d":"0 kn"}},{"$f":"IFERROR(IF(PodaciOPotencijalnomKlijentu[[#This Row],[Predviđanje \nZatvori]] <>\"\",IF(PodaciOPotencijalnomKlijentu[[#This Row],[Predviđanje \nZatvori]] = \"July\",PodaciOPotencijalnomKlijentu[Ponderirano \nPredviđanje],0),\"\"),\"\")","v":{"v":0,"d":"0 kn"}},{"$f":"IFERROR(IF(PodaciOPotencijalnomKlijentu[[#This Row],[Predviđanje \nZatvori]] <>\"\",IF(PodaciOPotencijalnomKlijentu[[#This Row],[Predviđanje \nZatvori]] = \"Kolovoz\",PodaciOPotencijalnomKlijentu[Ponderirano \nPredviđanje],0),\"\"),\"\")","v":{"v":0,"d":"0 kn"}},{"$f":"IFERROR(IF(PodaciOPotencijalnomKlijentu[[#This Row],[Predviđanje \nZatvori]] <>\"\",IF(PodaciOPotencijalnomKlijentu[[#This Row],[Predviđanje \nZatvori]] = \"Rujan\",PodaciOPotencijalnomKlijentu[Ponderirano \nPredviđanje],0),\"\"),\"\")","v":{"v":0,"d":"0 kn"}},{"$f":"IFERROR(IF(PodaciOPotencijalnomKlijentu[[#This Row],[Predviđanje \nZatvori]] <>\"\",IF(PodaciOPotencijalnomKlijentu[[#This Row],[Predviđanje \nZatvori]] = \"Listopad\",PodaciOPotencijalnomKlijentu[Ponderirano \nPredviđanje],0),\"\"),\"\")","v":{"v":0,"d":"0 kn"}},{"$f":"IFERROR(IF(PodaciOPotencijalnomKlijentu[[#This Row],[Predviđanje \nZatvori]] <>\"\",IF(PodaciOPotencijalnomKlijentu[[#This Row],[Predviđanje \nZatvori]] = \"Studeni\",PodaciOPotencijalnomKlijentu[Ponderirano \nPredviđanje],0),\"\"),\"\")","v":{"v":0,"d":"0 kn"}},{"$f":"IFERROR(IF(PodaciOPotencijalnomKlijentu[[#This Row],[Predviđanje \nZatvori]] <>\"\",IF(PodaciOPotencijalnomKlijentu[[#This Row],[Predviđanje \nZatvori]] = \"Prosinac\",PodaciOPotencijalnomKlijentu[Ponderirano \nPredviđanje],0),\"\"),\"\")","v":{"v":0,"d":"0 kn"}}]
[null,{"$f":"IFERROR(IF(AND(PodaciOPotencijalnomKlijentu[[#This Row],[Ime potencijalnog klijenta]] <> \"\", ROW(PredviđenaProdaja[Ime potencijalnog klijenta])<>ZadnjiUnos),PodaciOPotencijalnomKlijentu[Ime potencijalnog klijenta], \"\"),\"\")","v":""},{"$f":"IFERROR(IF(PodaciOPotencijalnomKlijentu[[#This Row],[Predviđanje \nZatvori]] <>\"\",IF(PodaciOPotencijalnomKlijentu[[#This Row],[Predviđanje \nZatvori]]= \"Siječanj\",PodaciOPotencijalnomKlijentu[Ponderirano \nPredviđanje],0),\"\"),\"\")","v":""},{"$f":"IFERROR(IF(PodaciOPotencijalnomKlijentu[[#This Row],[Predviđanje \nZatvori]] <>\"\",IF(PodaciOPotencijalnomKlijentu[[#This Row],[Predviđanje \nZatvori]] = \"Veljača\",PodaciOPotencijalnomKlijentu[Ponderirano \nPredviđanje],0),\"\"),\"\")","v":""},{"$f":"IFERROR(IF(PodaciOPotencijalnomKlijentu[[#This Row],[Predviđanje \nZatvori]] <>\"\",IF(PodaciOPotencijalnomKlijentu[[#This Row],[Predviđanje \nZatvori]] = \"Ožujak\",PodaciOPotencijalnomKlijentu[Ponderirano \nPredviđanje],0),\"\"),\"\")","v":""},{"$f":"IFERROR(IF(PodaciOPotencijalnomKlijentu[[#This Row],[Predviđanje \nZatvori]] <>\"\",IF(PodaciOPotencijalnomKlijentu[[#This Row],[Predviđanje \nZatvori]] = \"Travanj\",PodaciOPotencijalnomKlijentu[Ponderirano \nPredviđanje],0),\"\"),\"\")","v":""},{"$f":"IFERROR(IF(PodaciOPotencijalnomKlijentu[[#This Row],[Predviđanje \nZatvori]] <>\"\",IF(PodaciOPotencijalnomKlijentu[[#This Row],[Predviđanje \nZatvori]] = \"Svibanj\",PodaciOPotencijalnomKlijentu[Ponderirano \nPredviđanje],0),\"\"),\"\")","v":""},{"$f":"IFERROR(IF(PodaciOPotencijalnomKlijentu[[#This Row],[Predviđanje \nZatvori]] <>\"\",IF(PodaciOPotencijalnomKlijentu[[#This Row],[Predviđanje \nZatvori]] = \"Lipanj\",PodaciOPotencijalnomKlijentu[Ponderirano \nPredviđanje],0),\"\"),\"\")","v":""},{"$f":"IFERROR(IF(PodaciOPotencijalnomKlijentu[[#This Row],[Predviđanje \nZatvori]] <>\"\",IF(PodaciOPotencijalnomKlijentu[[#This Row],[Predviđanje \nZatvori]] = \"July\",PodaciOPotencijalnomKlijentu[Ponderirano \nPredviđanje],0),\"\"),\"\")","v":""},{"$f":"IFERROR(IF(PodaciOPotencijalnomKlijentu[[#This Row],[Predviđanje \nZatvori]] <>\"\",IF(PodaciOPotencijalnomKlijentu[[#This Row],[Predviđanje \nZatvori]] = \"Kolovoz\",PodaciOPotencijalnomKlijentu[Ponderirano \nPredviđanje],0),\"\"),\"\")","v":""},{"$f":"IFERROR(IF(PodaciOPotencijalnomKlijentu[[#This Row],[Predviđanje \nZatvori]] <>\"\",IF(PodaciOPotencijalnomKlijentu[[#This Row],[Predviđanje \nZatvori]] = \"Rujan\",PodaciOPotencijalnomKlijentu[Ponderirano \nPredviđanje],0),\"\"),\"\")","v":""},{"$f":"IFERROR(IF(PodaciOPotencijalnomKlijentu[[#This Row],[Predviđanje \nZatvori]] <>\"\",IF(PodaciOPotencijalnomKlijentu[[#This Row],[Predviđanje \nZatvori]] = \"Listopad\",PodaciOPotencijalnomKlijentu[Ponderirano \nPredviđanje],0),\"\"),\"\")","v":""},{"$f":"IFERROR(IF(PodaciOPotencijalnomKlijentu[[#This Row],[Predviđanje \nZatvori]] <>\"\",IF(PodaciOPotencijalnomKlijentu[[#This Row],[Predviđanje \nZatvori]] = \"Studeni\",PodaciOPotencijalnomKlijentu[Ponderirano \nPredviđanje],0),\"\"),\"\")","v":""},{"$f":"IFERROR(IF(PodaciOPotencijalnomKlijentu[[#This Row],[Predviđanje \nZatvori]] <>\"\",IF(PodaciOPotencijalnomKlijentu[[#This Row],[Predviđanje \nZatvori]] = \"Prosinac\",PodaciOPotencijalnomKlijentu[Ponderirano \nPredviđanje],0),\"\"),\"\")","v":""}]
[null,{"$f":"IFERROR(IF(AND(PodaciOPotencijalnomKlijentu[[#This Row],[Ime potencijalnog klijenta]] <> \"\", ROW(PredviđenaProdaja[Ime potencijalnog klijenta])<>ZadnjiUnos),PodaciOPotencijalnomKlijentu[Ime potencijalnog klijenta], \"\"),\"\")","v":""},{"$f":"IFERROR(IF(PodaciOPotencijalnomKlijentu[[#This Row],[Predviđanje \nZatvori]] <>\"\",IF(PodaciOPotencijalnomKlijentu[[#This Row],[Predviđanje \nZatvori]]= \"Siječanj\",PodaciOPotencijalnomKlijentu[Ponderirano \nPredviđanje],0),\"\"),\"\")","v":""},{"$f":"IFERROR(IF(PodaciOPotencijalnomKlijentu[[#This Row],[Predviđanje \nZatvori]] <>\"\",IF(PodaciOPotencijalnomKlijentu[[#This Row],[Predviđanje \nZatvori]] = \"Veljača\",PodaciOPotencijalnomKlijentu[Ponderirano \nPredviđanje],0),\"\"),\"\")","v":""},{"$f":"IFERROR(IF(PodaciOPotencijalnomKlijentu[[#This Row],[Predviđanje \nZatvori]] <>\"\",IF(PodaciOPotencijalnomKlijentu[[#This Row],[Predviđanje \nZatvori]] = \"Ožujak\",PodaciOPotencijalnomKlijentu[Ponderirano \nPredviđanje],0),\"\"),\"\")","v":""},{"$f":"IFERROR(IF(PodaciOPotencijalnomKlijentu[[#This Row],[Predviđanje \nZatvori]] <>\"\",IF(PodaciOPotencijalnomKlijentu[[#This Row],[Predviđanje \nZatvori]] = \"Travanj\",PodaciOPotencijalnomKlijentu[Ponderirano \nPredviđanje],0),\"\"),\"\")","v":""},{"$f":"IFERROR(IF(PodaciOPotencijalnomKlijentu[[#This Row],[Predviđanje \nZatvori]] <>\"\",IF(PodaciOPotencijalnomKlijentu[[#This Row],[Predviđanje \nZatvori]] = \"Svibanj\",PodaciOPotencijalnomKlijentu[Ponderirano \nPredviđanje],0),\"\"),\"\")","v":""},{"$f":"IFERROR(IF(PodaciOPotencijalnomKlijentu[[#This Row],[Predviđanje \nZatvori]] <>\"\",IF(PodaciOPotencijalnomKlijentu[[#This Row],[Predviđanje \nZatvori]] = \"Lipanj\",PodaciOPotencijalnomKlijentu[Ponderirano \nPredviđanje],0),\"\"),\"\")","v":""},{"$f":"IFERROR(IF(PodaciOPotencijalnomKlijentu[[#This Row],[Predviđanje \nZatvori]] <>\"\",IF(PodaciOPotencijalnomKlijentu[[#This Row],[Predviđanje \nZatvori]] = \"July\",PodaciOPotencijalnomKlijentu[Ponderirano \nPredviđanje],0),\"\"),\"\")","v":""},{"$f":"IFERROR(IF(PodaciOPotencijalnomKlijentu[[#This Row],[Predviđanje \nZatvori]] <>\"\",IF(PodaciOPotencijalnomKlijentu[[#This Row],[Predviđanje \nZatvori]] = \"Kolovoz\",PodaciOPotencijalnomKlijentu[Ponderirano \nPredviđanje],0),\"\"),\"\")","v":""},{"$f":"IFERROR(IF(PodaciOPotencijalnomKlijentu[[#This Row],[Predviđanje \nZatvori]] <>\"\",IF(PodaciOPotencijalnomKlijentu[[#This Row],[Predviđanje \nZatvori]] = \"Rujan\",PodaciOPotencijalnomKlijentu[Ponderirano \nPredviđanje],0),\"\"),\"\")","v":""},{"$f":"IFERROR(IF(PodaciOPotencijalnomKlijentu[[#This Row],[Predviđanje \nZatvori]] <>\"\",IF(PodaciOPotencijalnomKlijentu[[#This Row],[Predviđanje \nZatvori]] = \"Listopad\",PodaciOPotencijalnomKlijentu[Ponderirano \nPredviđanje],0),\"\"),\"\")","v":""},{"$f":"IFERROR(IF(PodaciOPotencijalnomKlijentu[[#This Row],[Predviđanje \nZatvori]] <>\"\",IF(PodaciOPotencijalnomKlijentu[[#This Row],[Predviđanje \nZatvori]] = \"Studeni\",PodaciOPotencijalnomKlijentu[Ponderirano \nPredviđanje],0),\"\"),\"\")","v":""},{"$f":"IFERROR(IF(PodaciOPotencijalnomKlijentu[[#This Row],[Predviđanje \nZatvori]] <>\"\",IF(PodaciOPotencijalnomKlijentu[[#This Row],[Predviđanje \nZatvori]] = \"Prosinac\",PodaciOPotencijalnomKlijentu[Ponderirano \nPredviđanje],0),\"\"),\"\")","v":""}]
[null,{"$f":"IFERROR(IF(AND(PodaciOPotencijalnomKlijentu[[#This Row],[Ime potencijalnog klijenta]] <> \"\", ROW(PredviđenaProdaja[Ime potencijalnog klijenta])<>ZadnjiUnos),PodaciOPotencijalnomKlijentu[Ime potencijalnog klijenta], \"\"),\"\")","v":""},{"$f":"IFERROR(IF(PodaciOPotencijalnomKlijentu[[#This Row],[Predviđanje \nZatvori]] <>\"\",IF(PodaciOPotencijalnomKlijentu[[#This Row],[Predviđanje \nZatvori]]= \"Siječanj\",PodaciOPotencijalnomKlijentu[Ponderirano \nPredviđanje],0),\"\"),\"\")","v":""},{"$f":"IFERROR(IF(PodaciOPotencijalnomKlijentu[[#This Row],[Predviđanje \nZatvori]] <>\"\",IF(PodaciOPotencijalnomKlijentu[[#This Row],[Predviđanje \nZatvori]] = \"Veljača\",PodaciOPotencijalnomKlijentu[Ponderirano \nPredviđanje],0),\"\"),\"\")","v":""},{"$f":"IFERROR(IF(PodaciOPotencijalnomKlijentu[[#This Row],[Predviđanje \nZatvori]] <>\"\",IF(PodaciOPotencijalnomKlijentu[[#This Row],[Predviđanje \nZatvori]] = \"Ožujak\",PodaciOPotencijalnomKlijentu[Ponderirano \nPredviđanje],0),\"\"),\"\")","v":""},{"$f":"IFERROR(IF(PodaciOPotencijalnomKlijentu[[#This Row],[Predviđanje \nZatvori]] <>\"\",IF(PodaciOPotencijalnomKlijentu[[#This Row],[Predviđanje \nZatvori]] = \"Travanj\",PodaciOPotencijalnomKlijentu[Ponderirano \nPredviđanje],0),\"\"),\"\")","v":""},{"$f":"IFERROR(IF(PodaciOPotencijalnomKlijentu[[#This Row],[Predviđanje \nZatvori]] <>\"\",IF(PodaciOPotencijalnomKlijentu[[#This Row],[Predviđanje \nZatvori]] = \"Svibanj\",PodaciOPotencijalnomKlijentu[Ponderirano \nPredviđanje],0),\"\"),\"\")","v":""},{"$f":"IFERROR(IF(PodaciOPotencijalnomKlijentu[[#This Row],[Predviđanje \nZatvori]] <>\"\",IF(PodaciOPotencijalnomKlijentu[[#This Row],[Predviđanje \nZatvori]] = \"Lipanj\",PodaciOPotencijalnomKlijentu[Ponderirano \nPredviđanje],0),\"\"),\"\")","v":""},{"$f":"IFERROR(IF(PodaciOPotencijalnomKlijentu[[#This Row],[Predviđanje \nZatvori]] <>\"\",IF(PodaciOPotencijalnomKlijentu[[#This Row],[Predviđanje \nZatvori]] = \"July\",PodaciOPotencijalnomKlijentu[Ponderirano \nPredviđanje],0),\"\"),\"\")","v":""},{"$f":"IFERROR(IF(PodaciOPotencijalnomKlijentu[[#This Row],[Predviđanje \nZatvori]] <>\"\",IF(PodaciOPotencijalnomKlijentu[[#This Row],[Predviđanje \nZatvori]] = \"Kolovoz\",PodaciOPotencijalnomKlijentu[Ponderirano \nPredviđanje],0),\"\"),\"\")","v":""},{"$f":"IFERROR(IF(PodaciOPotencijalnomKlijentu[[#This Row],[Predviđanje \nZatvori]] <>\"\",IF(PodaciOPotencijalnomKlijentu[[#This Row],[Predviđanje \nZatvori]] = \"Rujan\",PodaciOPotencijalnomKlijentu[Ponderirano \nPredviđanje],0),\"\"),\"\")","v":""},{"$f":"IFERROR(IF(PodaciOPotencijalnomKlijentu[[#This Row],[Predviđanje \nZatvori]] <>\"\",IF(PodaciOPotencijalnomKlijentu[[#This Row],[Predviđanje \nZatvori]] = \"Listopad\",PodaciOPotencijalnomKlijentu[Ponderirano \nPredviđanje],0),\"\"),\"\")","v":""},{"$f":"IFERROR(IF(PodaciOPotencijalnomKlijentu[[#This Row],[Predviđanje \nZatvori]] <>\"\",IF(PodaciOPotencijalnomKlijentu[[#This Row],[Predviđanje \nZatvori]] = \"Studeni\",PodaciOPotencijalnomKlijentu[Ponderirano \nPredviđanje],0),\"\"),\"\")","v":""},{"$f":"IFERROR(IF(PodaciOPotencijalnomKlijentu[[#This Row],[Predviđanje \nZatvori]] <>\"\",IF(PodaciOPotencijalnomKlijentu[[#This Row],[Predviđanje \nZatvori]] = \"Prosinac\",PodaciOPotencijalnomKlijentu[Ponderirano \nPredviđanje],0),\"\"),\"\")","v":""}]
[null,{"$f":"IFERROR(IF(AND(PodaciOPotencijalnomKlijentu[[#This Row],[Ime potencijalnog klijenta]] <> \"\", ROW(PredviđenaProdaja[Ime potencijalnog klijenta])<>ZadnjiUnos),PodaciOPotencijalnomKlijentu[Ime potencijalnog klijenta], \"\"),\"\")","v":""},{"$f":"IFERROR(IF(PodaciOPotencijalnomKlijentu[[#This Row],[Predviđanje \nZatvori]] <>\"\",IF(PodaciOPotencijalnomKlijentu[[#This Row],[Predviđanje \nZatvori]]= \"Siječanj\",PodaciOPotencijalnomKlijentu[Ponderirano \nPredviđanje],0),\"\"),\"\")","v":""},{"$f":"IFERROR(IF(PodaciOPotencijalnomKlijentu[[#This Row],[Predviđanje \nZatvori]] <>\"\",IF(PodaciOPotencijalnomKlijentu[[#This Row],[Predviđanje \nZatvori]] = \"Veljača\",PodaciOPotencijalnomKlijentu[Ponderirano \nPredviđanje],0),\"\"),\"\")","v":""},{"$f":"IFERROR(IF(PodaciOPotencijalnomKlijentu[[#This Row],[Predviđanje \nZatvori]] <>\"\",IF(PodaciOPotencijalnomKlijentu[[#This Row],[Predviđanje \nZatvori]] = \"Ožujak\",PodaciOPotencijalnomKlijentu[Ponderirano \nPredviđanje],0),\"\"),\"\")","v":""},{"$f":"IFERROR(IF(PodaciOPotencijalnomKlijentu[[#This Row],[Predviđanje \nZatvori]] <>\"\",IF(PodaciOPotencijalnomKlijentu[[#This Row],[Predviđanje \nZatvori]] = \"Travanj\",PodaciOPotencijalnomKlijentu[Ponderirano \nPredviđanje],0),\"\"),\"\")","v":""},{"$f":"IFERROR(IF(PodaciOPotencijalnomKlijentu[[#This Row],[Predviđanje \nZatvori]] <>\"\",IF(PodaciOPotencijalnomKlijentu[[#This Row],[Predviđanje \nZatvori]] = \"Svibanj\",PodaciOPotencijalnomKlijentu[Ponderirano \nPredviđanje],0),\"\"),\"\")","v":""},{"$f":"IFERROR(IF(PodaciOPotencijalnomKlijentu[[#This Row],[Predviđanje \nZatvori]] <>\"\",IF(PodaciOPotencijalnomKlijentu[[#This Row],[Predviđanje \nZatvori]] = \"Lipanj\",PodaciOPotencijalnomKlijentu[Ponderirano \nPredviđanje],0),\"\"),\"\")","v":""},{"$f":"IFERROR(IF(PodaciOPotencijalnomKlijentu[[#This Row],[Predviđanje \nZatvori]] <>\"\",IF(PodaciOPotencijalnomKlijentu[[#This Row],[Predviđanje \nZatvori]] = \"July\",PodaciOPotencijalnomKlijentu[Ponderirano \nPredviđanje],0),\"\"),\"\")","v":""},{"$f":"IFERROR(IF(PodaciOPotencijalnomKlijentu[[#This Row],[Predviđanje \nZatvori]] <>\"\",IF(PodaciOPotencijalnomKlijentu[[#This Row],[Predviđanje \nZatvori]] = \"Kolovoz\",PodaciOPotencijalnomKlijentu[Ponderirano \nPredviđanje],0),\"\"),\"\")","v":""},{"$f":"IFERROR(IF(PodaciOPotencijalnomKlijentu[[#This Row],[Predviđanje \nZatvori]] <>\"\",IF(PodaciOPotencijalnomKlijentu[[#This Row],[Predviđanje \nZatvori]] = \"Rujan\",PodaciOPotencijalnomKlijentu[Ponderirano \nPredviđanje],0),\"\"),\"\")","v":""},{"$f":"IFERROR(IF(PodaciOPotencijalnomKlijentu[[#This Row],[Predviđanje \nZatvori]] <>\"\",IF(PodaciOPotencijalnomKlijentu[[#This Row],[Predviđanje \nZatvori]] = \"Listopad\",PodaciOPotencijalnomKlijentu[Ponderirano \nPredviđanje],0),\"\"),\"\")","v":""},{"$f":"IFERROR(IF(PodaciOPotencijalnomKlijentu[[#This Row],[Predviđanje \nZatvori]] <>\"\",IF(PodaciOPotencijalnomKlijentu[[#This Row],[Predviđanje \nZatvori]] = \"Studeni\",PodaciOPotencijalnomKlijentu[Ponderirano \nPredviđanje],0),\"\"),\"\")","v":""},{"$f":"IFERROR(IF(PodaciOPotencijalnomKlijentu[[#This Row],[Predviđanje \nZatvori]] <>\"\",IF(PodaciOPotencijalnomKlijentu[[#This Row],[Predviđanje \nZatvori]] = \"Prosinac\",PodaciOPotencijalnomKlijentu[Ponderirano \nPredviđanje],0),\"\"),\"\")","v":""}]
[null,{"$f":"IFERROR(IF(AND(PodaciOPotencijalnomKlijentu[[#This Row],[Ime potencijalnog klijenta]] <> \"\", ROW(PredviđenaProdaja[Ime potencijalnog klijenta])<>ZadnjiUnos),PodaciOPotencijalnomKlijentu[Ime potencijalnog klijenta], \"\"),\"\")","v":""},{"$f":"IFERROR(IF(PodaciOPotencijalnomKlijentu[[#This Row],[Predviđanje \nZatvori]] <>\"\",IF(PodaciOPotencijalnomKlijentu[[#This Row],[Predviđanje \nZatvori]]= \"Siječanj\",PodaciOPotencijalnomKlijentu[Ponderirano \nPredviđanje],0),\"\"),\"\")","v":""},{"$f":"IFERROR(IF(PodaciOPotencijalnomKlijentu[[#This Row],[Predviđanje \nZatvori]] <>\"\",IF(PodaciOPotencijalnomKlijentu[[#This Row],[Predviđanje \nZatvori]] = \"Veljača\",PodaciOPotencijalnomKlijentu[Ponderirano \nPredviđanje],0),\"\"),\"\")","v":""},{"$f":"IFERROR(IF(PodaciOPotencijalnomKlijentu[[#This Row],[Predviđanje \nZatvori]] <>\"\",IF(PodaciOPotencijalnomKlijentu[[#This Row],[Predviđanje \nZatvori]] = \"Ožujak\",PodaciOPotencijalnomKlijentu[Ponderirano \nPredviđanje],0),\"\"),\"\")","v":""},{"$f":"IFERROR(IF(PodaciOPotencijalnomKlijentu[[#This Row],[Predviđanje \nZatvori]] <>\"\",IF(PodaciOPotencijalnomKlijentu[[#This Row],[Predviđanje \nZatvori]] = \"Travanj\",PodaciOPotencijalnomKlijentu[Ponderirano \nPredviđanje],0),\"\"),\"\")","v":""},{"$f":"IFERROR(IF(PodaciOPotencijalnomKlijentu[[#This Row],[Predviđanje \nZatvori]] <>\"\",IF(PodaciOPotencijalnomKlijentu[[#This Row],[Predviđanje \nZatvori]] = \"Svibanj\",PodaciOPotencijalnomKlijentu[Ponderirano \nPredviđanje],0),\"\"),\"\")","v":""},{"$f":"IFERROR(IF(PodaciOPotencijalnomKlijentu[[#This Row],[Predviđanje \nZatvori]] <>\"\",IF(PodaciOPotencijalnomKlijentu[[#This Row],[Predviđanje \nZatvori]] = \"Lipanj\",PodaciOPotencijalnomKlijentu[Ponderirano \nPredviđanje],0),\"\"),\"\")","v":""},{"$f":"IFERROR(IF(PodaciOPotencijalnomKlijentu[[#This Row],[Predviđanje \nZatvori]] <>\"\",IF(PodaciOPotencijalnomKlijentu[[#This Row],[Predviđanje \nZatvori]] = \"July\",PodaciOPotencijalnomKlijentu[Ponderirano \nPredviđanje],0),\"\"),\"\")","v":""},{"$f":"IFERROR(IF(PodaciOPotencijalnomKlijentu[[#This Row],[Predviđanje \nZatvori]] <>\"\",IF(PodaciOPotencijalnomKlijentu[[#This Row],[Predviđanje \nZatvori]] = \"Kolovoz\",PodaciOPotencijalnomKlijentu[Ponderirano \nPredviđanje],0),\"\"),\"\")","v":""},{"$f":"IFERROR(IF(PodaciOPotencijalnomKlijentu[[#This Row],[Predviđanje \nZatvori]] <>\"\",IF(PodaciOPotencijalnomKlijentu[[#This Row],[Predviđanje \nZatvori]] = \"Rujan\",PodaciOPotencijalnomKlijentu[Ponderirano \nPredviđanje],0),\"\"),\"\")","v":""},{"$f":"IFERROR(IF(PodaciOPotencijalnomKlijentu[[#This Row],[Predviđanje \nZatvori]] <>\"\",IF(PodaciOPotencijalnomKlijentu[[#This Row],[Predviđanje \nZatvori]] = \"Listopad\",PodaciOPotencijalnomKlijentu[Ponderirano \nPredviđanje],0),\"\"),\"\")","v":""},{"$f":"IFERROR(IF(PodaciOPotencijalnomKlijentu[[#This Row],[Predviđanje \nZatvori]] <>\"\",IF(PodaciOPotencijalnomKlijentu[[#This Row],[Predviđanje \nZatvori]] = \"Studeni\",PodaciOPotencijalnomKlijentu[Ponderirano \nPredviđanje],0),\"\"),\"\")","v":""},{"$f":"IFERROR(IF(PodaciOPotencijalnomKlijentu[[#This Row],[Predviđanje \nZatvori]] <>\"\",IF(PodaciOPotencijalnomKlijentu[[#This Row],[Predviđanje \nZatvori]] = \"Prosinac\",PodaciOPotencijalnomKlijentu[Ponderirano \nPredviđanje],0),\"\"),\"\")","v":""}]
[null,{"$f":"IFERROR(IF(AND(PodaciOPotencijalnomKlijentu[[#This Row],[Ime potencijalnog klijenta]] <> \"\", ROW(PredviđenaProdaja[Ime potencijalnog klijenta])<>ZadnjiUnos),PodaciOPotencijalnomKlijentu[Ime potencijalnog klijenta], \"\"),\"\")","v":""},{"$f":"IFERROR(IF(PodaciOPotencijalnomKlijentu[[#This Row],[Predviđanje \nZatvori]] <>\"\",IF(PodaciOPotencijalnomKlijentu[[#This Row],[Predviđanje \nZatvori]]= \"Siječanj\",PodaciOPotencijalnomKlijentu[Ponderirano \nPredviđanje],0),\"\"),\"\")","v":""},{"$f":"IFERROR(IF(PodaciOPotencijalnomKlijentu[[#This Row],[Predviđanje \nZatvori]] <>\"\",IF(PodaciOPotencijalnomKlijentu[[#This Row],[Predviđanje \nZatvori]] = \"Veljača\",PodaciOPotencijalnomKlijentu[Ponderirano \nPredviđanje],0),\"\"),\"\")","v":""},{"$f":"IFERROR(IF(PodaciOPotencijalnomKlijentu[[#This Row],[Predviđanje \nZatvori]] <>\"\",IF(PodaciOPotencijalnomKlijentu[[#This Row],[Predviđanje \nZatvori]] = \"Ožujak\",PodaciOPotencijalnomKlijentu[Ponderirano \nPredviđanje],0),\"\"),\"\")","v":""},{"$f":"IFERROR(IF(PodaciOPotencijalnomKlijentu[[#This Row],[Predviđanje \nZatvori]] <>\"\",IF(PodaciOPotencijalnomKlijentu[[#This Row],[Predviđanje \nZatvori]] = \"Travanj\",PodaciOPotencijalnomKlijentu[Ponderirano \nPredviđanje],0),\"\"),\"\")","v":""},{"$f":"IFERROR(IF(PodaciOPotencijalnomKlijentu[[#This Row],[Predviđanje \nZatvori]] <>\"\",IF(PodaciOPotencijalnomKlijentu[[#This Row],[Predviđanje \nZatvori]] = \"Svibanj\",PodaciOPotencijalnomKlijentu[Ponderirano \nPredviđanje],0),\"\"),\"\")","v":""},{"$f":"IFERROR(IF(PodaciOPotencijalnomKlijentu[[#This Row],[Predviđanje \nZatvori]] <>\"\",IF(PodaciOPotencijalnomKlijentu[[#This Row],[Predviđanje \nZatvori]] = \"Lipanj\",PodaciOPotencijalnomKlijentu[Ponderirano \nPredviđanje],0),\"\"),\"\")","v":""},{"$f":"IFERROR(IF(PodaciOPotencijalnomKlijentu[[#This Row],[Predviđanje \nZatvori]] <>\"\",IF(PodaciOPotencijalnomKlijentu[[#This Row],[Predviđanje \nZatvori]] = \"July\",PodaciOPotencijalnomKlijentu[Ponderirano \nPredviđanje],0),\"\"),\"\")","v":""},{"$f":"IFERROR(IF(PodaciOPotencijalnomKlijentu[[#This Row],[Predviđanje \nZatvori]] <>\"\",IF(PodaciOPotencijalnomKlijentu[[#This Row],[Predviđanje \nZatvori]] = \"Kolovoz\",PodaciOPotencijalnomKlijentu[Ponderirano \nPredviđanje],0),\"\"),\"\")","v":""},{"$f":"IFERROR(IF(PodaciOPotencijalnomKlijentu[[#This Row],[Predviđanje \nZatvori]] <>\"\",IF(PodaciOPotencijalnomKlijentu[[#This Row],[Predviđanje \nZatvori]] = \"Rujan\",PodaciOPotencijalnomKlijentu[Ponderirano \nPredviđanje],0),\"\"),\"\")","v":""},{"$f":"IFERROR(IF(PodaciOPotencijalnomKlijentu[[#This Row],[Predviđanje \nZatvori]] <>\"\",IF(PodaciOPotencijalnomKlijentu[[#This Row],[Predviđanje \nZatvori]] = \"Listopad\",PodaciOPotencijalnomKlijentu[Ponderirano \nPredviđanje],0),\"\"),\"\")","v":""},{"$f":"IFERROR(IF(PodaciOPotencijalnomKlijentu[[#This Row],[Predviđanje \nZatvori]] <>\"\",IF(PodaciOPotencijalnomKlijentu[[#This Row],[Predviđanje \nZatvori]] = \"Studeni\",PodaciOPotencijalnomKlijentu[Ponderirano \nPredviđanje],0),\"\"),\"\")","v":""},{"$f":"IFERROR(IF(PodaciOPotencijalnomKlijentu[[#This Row],[Predviđanje \nZatvori]] <>\"\",IF(PodaciOPotencijalnomKlijentu[[#This Row],[Predviđanje \nZatvori]] = \"Prosinac\",PodaciOPotencijalnomKlijentu[Ponderirano \nPredviđanje],0),\"\"),\"\")","v":""}]
[null,{"$f":"IFERROR(IF(AND(PodaciOPotencijalnomKlijentu[[#This Row],[Ime potencijalnog klijenta]] <> \"\", ROW(PredviđenaProdaja[Ime potencijalnog klijenta])<>ZadnjiUnos),PodaciOPotencijalnomKlijentu[Ime potencijalnog klijenta], \"\"),\"\")","v":""},{"$f":"IFERROR(IF(PodaciOPotencijalnomKlijentu[[#This Row],[Predviđanje \nZatvori]] <>\"\",IF(PodaciOPotencijalnomKlijentu[[#This Row],[Predviđanje \nZatvori]]= \"Siječanj\",PodaciOPotencijalnomKlijentu[Ponderirano \nPredviđanje],0),\"\"),\"\")","v":""},{"$f":"IFERROR(IF(PodaciOPotencijalnomKlijentu[[#This Row],[Predviđanje \nZatvori]] <>\"\",IF(PodaciOPotencijalnomKlijentu[[#This Row],[Predviđanje \nZatvori]] = \"Veljača\",PodaciOPotencijalnomKlijentu[Ponderirano \nPredviđanje],0),\"\"),\"\")","v":""},{"$f":"IFERROR(IF(PodaciOPotencijalnomKlijentu[[#This Row],[Predviđanje \nZatvori]] <>\"\",IF(PodaciOPotencijalnomKlijentu[[#This Row],[Predviđanje \nZatvori]] = \"Ožujak\",PodaciOPotencijalnomKlijentu[Ponderirano \nPredviđanje],0),\"\"),\"\")","v":""},{"$f":"IFERROR(IF(PodaciOPotencijalnomKlijentu[[#This Row],[Predviđanje \nZatvori]] <>\"\",IF(PodaciOPotencijalnomKlijentu[[#This Row],[Predviđanje \nZatvori]] = \"Travanj\",PodaciOPotencijalnomKlijentu[Ponderirano \nPredviđanje],0),\"\"),\"\")","v":""},{"$f":"IFERROR(IF(PodaciOPotencijalnomKlijentu[[#This Row],[Predviđanje \nZatvori]] <>\"\",IF(PodaciOPotencijalnomKlijentu[[#This Row],[Predviđanje \nZatvori]] = \"Svibanj\",PodaciOPotencijalnomKlijentu[Ponderirano \nPredviđanje],0),\"\"),\"\")","v":""},{"$f":"IFERROR(IF(PodaciOPotencijalnomKlijentu[[#This Row],[Predviđanje \nZatvori]] <>\"\",IF(PodaciOPotencijalnomKlijentu[[#This Row],[Predviđanje \nZatvori]] = \"Lipanj\",PodaciOPotencijalnomKlijentu[Ponderirano \nPredviđanje],0),\"\"),\"\")","v":""},{"$f":"IFERROR(IF(PodaciOPotencijalnomKlijentu[[#This Row],[Predviđanje \nZatvori]] <>\"\",IF(PodaciOPotencijalnomKlijentu[[#This Row],[Predviđanje \nZatvori]] = \"July\",PodaciOPotencijalnomKlijentu[Ponderirano \nPredviđanje],0),\"\"),\"\")","v":""},{"$f":"IFERROR(IF(PodaciOPotencijalnomKlijentu[[#This Row],[Predviđanje \nZatvori]] <>\"\",IF(PodaciOPotencijalnomKlijentu[[#This Row],[Predviđanje \nZatvori]] = \"Kolovoz\",PodaciOPotencijalnomKlijentu[Ponderirano \nPredviđanje],0),\"\"),\"\")","v":""},{"$f":"IFERROR(IF(PodaciOPotencijalnomKlijentu[[#This Row],[Predviđanje \nZatvori]] <>\"\",IF(PodaciOPotencijalnomKlijentu[[#This Row],[Predviđanje \nZatvori]] = \"Rujan\",PodaciOPotencijalnomKlijentu[Ponderirano \nPredviđanje],0),\"\"),\"\")","v":""},{"$f":"IFERROR(IF(PodaciOPotencijalnomKlijentu[[#This Row],[Predviđanje \nZatvori]] <>\"\",IF(PodaciOPotencijalnomKlijentu[[#This Row],[Predviđanje \nZatvori]] = \"Listopad\",PodaciOPotencijalnomKlijentu[Ponderirano \nPredviđanje],0),\"\"),\"\")","v":""},{"$f":"IFERROR(IF(PodaciOPotencijalnomKlijentu[[#This Row],[Predviđanje \nZatvori]] <>\"\",IF(PodaciOPotencijalnomKlijentu[[#This Row],[Predviđanje \nZatvori]] = \"Studeni\",PodaciOPotencijalnomKlijentu[Ponderirano \nPredviđanje],0),\"\"),\"\")","v":""},{"$f":"IFERROR(IF(PodaciOPotencijalnomKlijentu[[#This Row],[Predviđanje \nZatvori]] <>\"\",IF(PodaciOPotencijalnomKlijentu[[#This Row],[Predviđanje \nZatvori]] = \"Prosinac\",PodaciOPotencijalnomKlijentu[Ponderirano \nPredviđanje],0),\"\"),\"\")","v":""}]
[null,{"$f":"IFERROR(IF(AND(PodaciOPotencijalnomKlijentu[[#This Row],[Ime potencijalnog klijenta]] <> \"\", ROW(PredviđenaProdaja[Ime potencijalnog klijenta])<>ZadnjiUnos),PodaciOPotencijalnomKlijentu[Ime potencijalnog klijenta], \"\"),\"\")","v":""},{"$f":"IFERROR(IF(PodaciOPotencijalnomKlijentu[[#This Row],[Predviđanje \nZatvori]] <>\"\",IF(PodaciOPotencijalnomKlijentu[[#This Row],[Predviđanje \nZatvori]]= \"Siječanj\",PodaciOPotencijalnomKlijentu[Ponderirano \nPredviđanje],0),\"\"),\"\")","v":""},{"$f":"IFERROR(IF(PodaciOPotencijalnomKlijentu[[#This Row],[Predviđanje \nZatvori]] <>\"\",IF(PodaciOPotencijalnomKlijentu[[#This Row],[Predviđanje \nZatvori]] = \"Veljača\",PodaciOPotencijalnomKlijentu[Ponderirano \nPredviđanje],0),\"\"),\"\")","v":""},{"$f":"IFERROR(IF(PodaciOPotencijalnomKlijentu[[#This Row],[Predviđanje \nZatvori]] <>\"\",IF(PodaciOPotencijalnomKlijentu[[#This Row],[Predviđanje \nZatvori]] = \"Ožujak\",PodaciOPotencijalnomKlijentu[Ponderirano \nPredviđanje],0),\"\"),\"\")","v":""},{"$f":"IFERROR(IF(PodaciOPotencijalnomKlijentu[[#This Row],[Predviđanje \nZatvori]] <>\"\",IF(PodaciOPotencijalnomKlijentu[[#This Row],[Predviđanje \nZatvori]] = \"Travanj\",PodaciOPotencijalnomKlijentu[Ponderirano \nPredviđanje],0),\"\"),\"\")","v":""},{"$f":"IFERROR(IF(PodaciOPotencijalnomKlijentu[[#This Row],[Predviđanje \nZatvori]] <>\"\",IF(PodaciOPotencijalnomKlijentu[[#This Row],[Predviđanje \nZatvori]] = \"Svibanj\",PodaciOPotencijalnomKlijentu[Ponderirano \nPredviđanje],0),\"\"),\"\")","v":""},{"$f":"IFERROR(IF(PodaciOPotencijalnomKlijentu[[#This Row],[Predviđanje \nZatvori]] <>\"\",IF(PodaciOPotencijalnomKlijentu[[#This Row],[Predviđanje \nZatvori]] = \"Lipanj\",PodaciOPotencijalnomKlijentu[Ponderirano \nPredviđanje],0),\"\"),\"\")","v":""},{"$f":"IFERROR(IF(PodaciOPotencijalnomKlijentu[[#This Row],[Predviđanje \nZatvori]] <>\"\",IF(PodaciOPotencijalnomKlijentu[[#This Row],[Predviđanje \nZatvori]] = \"July\",PodaciOPotencijalnomKlijentu[Ponderirano \nPredviđanje],0),\"\"),\"\")","v":""},{"$f":"IFERROR(IF(PodaciOPotencijalnomKlijentu[[#This Row],[Predviđanje \nZatvori]] <>\"\",IF(PodaciOPotencijalnomKlijentu[[#This Row],[Predviđanje \nZatvori]] = \"Kolovoz\",PodaciOPotencijalnomKlijentu[Ponderirano \nPredviđanje],0),\"\"),\"\")","v":""},{"$f":"IFERROR(IF(PodaciOPotencijalnomKlijentu[[#This Row],[Predviđanje \nZatvori]] <>\"\",IF(PodaciOPotencijalnomKlijentu[[#This Row],[Predviđanje \nZatvori]] = \"Rujan\",PodaciOPotencijalnomKlijentu[Ponderirano \nPredviđanje],0),\"\"),\"\")","v":""},{"$f":"IFERROR(IF(PodaciOPotencijalnomKlijentu[[#This Row],[Predviđanje \nZatvori]] <>\"\",IF(PodaciOPotencijalnomKlijentu[[#This Row],[Predviđanje \nZatvori]] = \"Listopad\",PodaciOPotencijalnomKlijentu[Ponderirano \nPredviđanje],0),\"\"),\"\")","v":""},{"$f":"IFERROR(IF(PodaciOPotencijalnomKlijentu[[#This Row],[Predviđanje \nZatvori]] <>\"\",IF(PodaciOPotencijalnomKlijentu[[#This Row],[Predviđanje \nZatvori]] = \"Studeni\",PodaciOPotencijalnomKlijentu[Ponderirano \nPredviđanje],0),\"\"),\"\")","v":""},{"$f":"IFERROR(IF(PodaciOPotencijalnomKlijentu[[#This Row],[Predviđanje \nZatvori]] <>\"\",IF(PodaciOPotencijalnomKlijentu[[#This Row],[Predviđanje \nZatvori]] = \"Prosinac\",PodaciOPotencijalnomKlijentu[Ponderirano \nPredviđanje],0),\"\"),\"\")","v":""}]
[null,{"$f":"IFERROR(IF(AND(PodaciOPotencijalnomKlijentu[[#This Row],[Ime potencijalnog klijenta]] <> \"\", ROW(PredviđenaProdaja[Ime potencijalnog klijenta])<>ZadnjiUnos),PodaciOPotencijalnomKlijentu[Ime potencijalnog klijenta], \"\"),\"\")","v":""},{"$f":"IFERROR(IF(PodaciOPotencijalnomKlijentu[[#This Row],[Predviđanje \nZatvori]] <>\"\",IF(PodaciOPotencijalnomKlijentu[[#This Row],[Predviđanje \nZatvori]]= \"Siječanj\",PodaciOPotencijalnomKlijentu[Ponderirano \nPredviđanje],0),\"\"),\"\")","v":""},{"$f":"IFERROR(IF(PodaciOPotencijalnomKlijentu[[#This Row],[Predviđanje \nZatvori]] <>\"\",IF(PodaciOPotencijalnomKlijentu[[#This Row],[Predviđanje \nZatvori]] = \"Veljača\",PodaciOPotencijalnomKlijentu[Ponderirano \nPredviđanje],0),\"\"),\"\")","v":""},{"$f":"IFERROR(IF(PodaciOPotencijalnomKlijentu[[#This Row],[Predviđanje \nZatvori]] <>\"\",IF(PodaciOPotencijalnomKlijentu[[#This Row],[Predviđanje \nZatvori]] = \"Ožujak\",PodaciOPotencijalnomKlijentu[Ponderirano \nPredviđanje],0),\"\"),\"\")","v":""},{"$f":"IFERROR(IF(PodaciOPotencijalnomKlijentu[[#This Row],[Predviđanje \nZatvori]] <>\"\",IF(PodaciOPotencijalnomKlijentu[[#This Row],[Predviđanje \nZatvori]] = \"Travanj\",PodaciOPotencijalnomKlijentu[Ponderirano \nPredviđanje],0),\"\"),\"\")","v":""},{"$f":"IFERROR(IF(PodaciOPotencijalnomKlijentu[[#This Row],[Predviđanje \nZatvori]] <>\"\",IF(PodaciOPotencijalnomKlijentu[[#This Row],[Predviđanje \nZatvori]] = \"Svibanj\",PodaciOPotencijalnomKlijentu[Ponderirano \nPredviđanje],0),\"\"),\"\")","v":""},{"$f":"IFERROR(IF(PodaciOPotencijalnomKlijentu[[#This Row],[Predviđanje \nZatvori]] <>\"\",IF(PodaciOPotencijalnomKlijentu[[#This Row],[Predviđanje \nZatvori]] = \"Lipanj\",PodaciOPotencijalnomKlijentu[Ponderirano \nPredviđanje],0),\"\"),\"\")","v":""},{"$f":"IFERROR(IF(PodaciOPotencijalnomKlijentu[[#This Row],[Predviđanje \nZatvori]] <>\"\",IF(PodaciOPotencijalnomKlijentu[[#This Row],[Predviđanje \nZatvori]] = \"July\",PodaciOPotencijalnomKlijentu[Ponderirano \nPredviđanje],0),\"\"),\"\")","v":""},{"$f":"IFERROR(IF(PodaciOPotencijalnomKlijentu[[#This Row],[Predviđanje \nZatvori]] <>\"\",IF(PodaciOPotencijalnomKlijentu[[#This Row],[Predviđanje \nZatvori]] = \"Kolovoz\",PodaciOPotencijalnomKlijentu[Ponderirano \nPredviđanje],0),\"\"),\"\")","v":""},{"$f":"IFERROR(IF(PodaciOPotencijalnomKlijentu[[#This Row],[Predviđanje \nZatvori]] <>\"\",IF(PodaciOPotencijalnomKlijentu[[#This Row],[Predviđanje \nZatvori]] = \"Rujan\",PodaciOPotencijalnomKlijentu[Ponderirano \nPredviđanje],0),\"\"),\"\")","v":""},{"$f":"IFERROR(IF(PodaciOPotencijalnomKlijentu[[#This Row],[Predviđanje \nZatvori]] <>\"\",IF(PodaciOPotencijalnomKlijentu[[#This Row],[Predviđanje \nZatvori]] = \"Listopad\",PodaciOPotencijalnomKlijentu[Ponderirano \nPredviđanje],0),\"\"),\"\")","v":""},{"$f":"IFERROR(IF(PodaciOPotencijalnomKlijentu[[#This Row],[Predviđanje \nZatvori]] <>\"\",IF(PodaciOPotencijalnomKlijentu[[#This Row],[Predviđanje \nZatvori]] = \"Studeni\",PodaciOPotencijalnomKlijentu[Ponderirano \nPredviđanje],0),\"\"),\"\")","v":""},{"$f":"IFERROR(IF(PodaciOPotencijalnomKlijentu[[#This Row],[Predviđanje \nZatvori]] <>\"\",IF(PodaciOPotencijalnomKlijentu[[#This Row],[Predviđanje \nZatvori]] = \"Prosinac\",PodaciOPotencijalnomKlijentu[Ponderirano \nPredviđanje],0),\"\"),\"\")","v":""}]
[null,{"$f":"IFERROR(IF(AND(PodaciOPotencijalnomKlijentu[[#This Row],[Ime potencijalnog klijenta]] <> \"\", ROW(PredviđenaProdaja[Ime potencijalnog klijenta])<>ZadnjiUnos),PodaciOPotencijalnomKlijentu[Ime potencijalnog klijenta], \"\"),\"\")","v":""},{"$f":"IFERROR(IF(PodaciOPotencijalnomKlijentu[[#This Row],[Predviđanje \nZatvori]] <>\"\",IF(PodaciOPotencijalnomKlijentu[[#This Row],[Predviđanje \nZatvori]]= \"Siječanj\",PodaciOPotencijalnomKlijentu[Ponderirano \nPredviđanje],0),\"\"),\"\")","v":""},{"$f":"IFERROR(IF(PodaciOPotencijalnomKlijentu[[#This Row],[Predviđanje \nZatvori]] <>\"\",IF(PodaciOPotencijalnomKlijentu[[#This Row],[Predviđanje \nZatvori]] = \"Veljača\",PodaciOPotencijalnomKlijentu[Ponderirano \nPredviđanje],0),\"\"),\"\")","v":""},{"$f":"IFERROR(IF(PodaciOPotencijalnomKlijentu[[#This Row],[Predviđanje \nZatvori]] <>\"\",IF(PodaciOPotencijalnomKlijentu[[#This Row],[Predviđanje \nZatvori]] = \"Ožujak\",PodaciOPotencijalnomKlijentu[Ponderirano \nPredviđanje],0),\"\"),\"\")","v":""},{"$f":"IFERROR(IF(PodaciOPotencijalnomKlijentu[[#This Row],[Predviđanje \nZatvori]] <>\"\",IF(PodaciOPotencijalnomKlijentu[[#This Row],[Predviđanje \nZatvori]] = \"Travanj\",PodaciOPotencijalnomKlijentu[Ponderirano \nPredviđanje],0),\"\"),\"\")","v":""},{"$f":"IFERROR(IF(PodaciOPotencijalnomKlijentu[[#This Row],[Predviđanje \nZatvori]] <>\"\",IF(PodaciOPotencijalnomKlijentu[[#This Row],[Predviđanje \nZatvori]] = \"Svibanj\",PodaciOPotencijalnomKlijentu[Ponderirano \nPredviđanje],0),\"\"),\"\")","v":""},{"$f":"IFERROR(IF(PodaciOPotencijalnomKlijentu[[#This Row],[Predviđanje \nZatvori]] <>\"\",IF(PodaciOPotencijalnomKlijentu[[#This Row],[Predviđanje \nZatvori]] = \"Lipanj\",PodaciOPotencijalnomKlijentu[Ponderirano \nPredviđanje],0),\"\"),\"\")","v":""},{"$f":"IFERROR(IF(PodaciOPotencijalnomKlijentu[[#This Row],[Predviđanje \nZatvori]] <>\"\",IF(PodaciOPotencijalnomKlijentu[[#This Row],[Predviđanje \nZatvori]] = \"July\",PodaciOPotencijalnomKlijentu[Ponderirano \nPredviđanje],0),\"\"),\"\")","v":""},{"$f":"IFERROR(IF(PodaciOPotencijalnomKlijentu[[#This Row],[Predviđanje \nZatvori]] <>\"\",IF(PodaciOPotencijalnomKlijentu[[#This Row],[Predviđanje \nZatvori]] = \"Kolovoz\",PodaciOPotencijalnomKlijentu[Ponderirano \nPredviđanje],0),\"\"),\"\")","v":""},{"$f":"IFERROR(IF(PodaciOPotencijalnomKlijentu[[#This Row],[Predviđanje \nZatvori]] <>\"\",IF(PodaciOPotencijalnomKlijentu[[#This Row],[Predviđanje \nZatvori]] = \"Rujan\",PodaciOPotencijalnomKlijentu[Ponderirano \nPredviđanje],0),\"\"),\"\")","v":""},{"$f":"IFERROR(IF(PodaciOPotencijalnomKlijentu[[#This Row],[Predviđanje \nZatvori]] <>\"\",IF(PodaciOPotencijalnomKlijentu[[#This Row],[Predviđanje \nZatvori]] = \"Listopad\",PodaciOPotencijalnomKlijentu[Ponderirano \nPredviđanje],0),\"\"),\"\")","v":""},{"$f":"IFERROR(IF(PodaciOPotencijalnomKlijentu[[#This Row],[Predviđanje \nZatvori]] <>\"\",IF(PodaciOPotencijalnomKlijentu[[#This Row],[Predviđanje \nZatvori]] = \"Studeni\",PodaciOPotencijalnomKlijentu[Ponderirano \nPredviđanje],0),\"\"),\"\")","v":""},{"$f":"IFERROR(IF(PodaciOPotencijalnomKlijentu[[#This Row],[Predviđanje \nZatvori]] <>\"\",IF(PodaciOPotencijalnomKlijentu[[#This Row],[Predviđanje \nZatvori]] = \"Prosinac\",PodaciOPotencijalnomKlijentu[Ponderirano \nPredviđanje],0),\"\"),\"\")","v":""}]
[null,{"$f":"IFERROR(IF(AND(PodaciOPotencijalnomKlijentu[[#This Row],[Ime potencijalnog klijenta]] <> \"\", ROW(PredviđenaProdaja[Ime potencijalnog klijenta])<>ZadnjiUnos),PodaciOPotencijalnomKlijentu[Ime potencijalnog klijenta], \"\"),\"\")","v":""},{"$f":"IFERROR(IF(PodaciOPotencijalnomKlijentu[[#This Row],[Predviđanje \nZatvori]] <>\"\",IF(PodaciOPotencijalnomKlijentu[[#This Row],[Predviđanje \nZatvori]]= \"Siječanj\",PodaciOPotencijalnomKlijentu[Ponderirano \nPredviđanje],0),\"\"),\"\")","v":""},{"$f":"IFERROR(IF(PodaciOPotencijalnomKlijentu[[#This Row],[Predviđanje \nZatvori]] <>\"\",IF(PodaciOPotencijalnomKlijentu[[#This Row],[Predviđanje \nZatvori]] = \"Veljača\",PodaciOPotencijalnomKlijentu[Ponderirano \nPredviđanje],0),\"\"),\"\")","v":""},{"$f":"IFERROR(IF(PodaciOPotencijalnomKlijentu[[#This Row],[Predviđanje \nZatvori]] <>\"\",IF(PodaciOPotencijalnomKlijentu[[#This Row],[Predviđanje \nZatvori]] = \"Ožujak\",PodaciOPotencijalnomKlijentu[Ponderirano \nPredviđanje],0),\"\"),\"\")","v":""},{"$f":"IFERROR(IF(PodaciOPotencijalnomKlijentu[[#This Row],[Predviđanje \nZatvori]] <>\"\",IF(PodaciOPotencijalnomKlijentu[[#This Row],[Predviđanje \nZatvori]] = \"Travanj\",PodaciOPotencijalnomKlijentu[Ponderirano \nPredviđanje],0),\"\"),\"\")","v":""},{"$f":"IFERROR(IF(PodaciOPotencijalnomKlijentu[[#This Row],[Predviđanje \nZatvori]] <>\"\",IF(PodaciOPotencijalnomKlijentu[[#This Row],[Predviđanje \nZatvori]] = \"Svibanj\",PodaciOPotencijalnomKlijentu[Ponderirano \nPredviđanje],0),\"\"),\"\")","v":""},{"$f":"IFERROR(IF(PodaciOPotencijalnomKlijentu[[#This Row],[Predviđanje \nZatvori]] <>\"\",IF(PodaciOPotencijalnomKlijentu[[#This Row],[Predviđanje \nZatvori]] = \"Lipanj\",PodaciOPotencijalnomKlijentu[Ponderirano \nPredviđanje],0),\"\"),\"\")","v":""},{"$f":"IFERROR(IF(PodaciOPotencijalnomKlijentu[[#This Row],[Predviđanje \nZatvori]] <>\"\",IF(PodaciOPotencijalnomKlijentu[[#This Row],[Predviđanje \nZatvori]] = \"July\",PodaciOPotencijalnomKlijentu[Ponderirano \nPredviđanje],0),\"\"),\"\")","v":""},{"$f":"IFERROR(IF(PodaciOPotencijalnomKlijentu[[#This Row],[Predviđanje \nZatvori]] <>\"\",IF(PodaciOPotencijalnomKlijentu[[#This Row],[Predviđanje \nZatvori]] = \"Kolovoz\",PodaciOPotencijalnomKlijentu[Ponderirano \nPredviđanje],0),\"\"),\"\")","v":""},{"$f":"IFERROR(IF(PodaciOPotencijalnomKlijentu[[#This Row],[Predviđanje \nZatvori]] <>\"\",IF(PodaciOPotencijalnomKlijentu[[#This Row],[Predviđanje \nZatvori]] = \"Rujan\",PodaciOPotencijalnomKlijentu[Ponderirano \nPredviđanje],0),\"\"),\"\")","v":""},{"$f":"IFERROR(IF(PodaciOPotencijalnomKlijentu[[#This Row],[Predviđanje \nZatvori]] <>\"\",IF(PodaciOPotencijalnomKlijentu[[#This Row],[Predviđanje \nZatvori]] = \"Listopad\",PodaciOPotencijalnomKlijentu[Ponderirano \nPredviđanje],0),\"\"),\"\")","v":""},{"$f":"IFERROR(IF(PodaciOPotencijalnomKlijentu[[#This Row],[Predviđanje \nZatvori]] <>\"\",IF(PodaciOPotencijalnomKlijentu[[#This Row],[Predviđanje \nZatvori]] = \"Studeni\",PodaciOPotencijalnomKlijentu[Ponderirano \nPredviđanje],0),\"\"),\"\")","v":""},{"$f":"IFERROR(IF(PodaciOPotencijalnomKlijentu[[#This Row],[Predviđanje \nZatvori]] <>\"\",IF(PodaciOPotencijalnomKlijentu[[#This Row],[Predviđanje \nZatvori]] = \"Prosinac\",PodaciOPotencijalnomKlijentu[Ponderirano \nPredviđanje],0),\"\"),\"\")","v":""}]
[null,"Zbroj",{"$f":"SUBTOTAL(109,PredviđenaProdaja[Siječanj \nPredviđanje])","v":{"v":270000,"d":"270,000 kn"}},{"$f":"SUBTOTAL(109,PredviđenaProdaja[Veljača \nPredviđanje])","v":{"v":20000,"d":"20,000 kn"}},{"$f":"SUBTOTAL(109,PredviđenaProdaja[Ožujak \nPredviđanje])","v":{"v":20000,"d":"20,000 kn"}},{"$f":"SUBTOTAL(109,PredviđenaProdaja[Travanj \nPredviđanje])","v":{"v":0,"d":"0 kn"}},{"$f":"SUBTOTAL(109,PredviđenaProdaja[Svibanj \nPredviđanje])","v":{"v":0,"d":"0 kn"}},{"$f":"SUBTOTAL(109,PredviđenaProdaja[Lipanj \nPredviđanje])","v":{"v":0,"d":"0 kn"}},{"$f":"SUBTOTAL(109,PredviđenaProdaja[Predviđanje za srpanj])","v":{"v":0,"d":"0 kn"}},{"$f":"SUBTOTAL(109,PredviđenaProdaja[Kolovoz \nPredviđanje])","v":{"v":0,"d":"0 kn"}},{"$f":"SUBTOTAL(109,PredviđenaProdaja[Rujan \nPredviđanje])","v":{"v":0,"d":"0 kn"}},{"$f":"SUBTOTAL(109,PredviđenaProdaja[Listopad \nPredviđanje])","v":{"v":0,"d":"0 kn"}},{"$f":"SUBTOTAL(109,PredviđenaProdaja[Studeni \nPredviđanje])","v":{"v":0,"d":"0 kn"}},{"$f":"SUBTOTAL(109,PredviđenaProdaja[Prosinac \nPredviđanje])","v":{"v":0,"d":"0 kn"}}]
[null,"Kumulativni zbroj",{"$f":"C20","v":{"v":270000,"d":"270,000 kn"}},{"$f":"C21+D20","v":{"v":290000,"d":"290,000 kn"}},{"$f":"D21+E20","v":{"v":310000,"d":"310,000 kn"}},{"$f":"E21+F20","v":{"v":310000,"d":"310,000 kn"}},{"$f":"F21+G20","v":{"v":310000,"d":"310,000 kn"}},{"$f":"G21+H20","v":{"v":310000,"d":"310,000 kn"}},{"$f":"H21+I20","v":{"v":310000,"d":"310,000 kn"}},{"$f":"I21+J20","v":{"v":310000,"d":"310,000 kn"}},{"$f":"J21+K20","v":{"v":310000,"d":"310,000 kn"}},{"$f":"K21+L20","v":{"v":310000,"d":"310,000 kn"}},{"$f":"L21+M20","v":{"v":310000,"d":"310,000 kn"}},{"$f":"M21+N20","v":{"v":310000,"d":"310,000 kn"}}]

{"sheet":"Mjesečno ponderirano predviđanj","index":2,"n_rows":3,"n_cols":2,"rows_kept":3}
[null,{"$f":"Naziv_tvrtke","v":"Naziv tvrtke"}]
[null,"Mjesečno ponderirano predviđanje"]
[null," "]